bitfinex-derivatives/quotes_BNBF0:USTF0_20250507
["timestamp","ask_amount","ask_price","bid_price","bid_amount"]
[1746630350853,0.99175571,602.78,602.06,2.4901928]
[1746630351654,0.99175571,602.77,602.06,2.4901928]
[1746630352154,0.99175571,602.76,602.06,2.4901928]
[1746630352655,0.99175571,602.75,602.06,2.4901928]
[1746630352851,0.99175571,602.75,602.06,3.2811928]
[1746630353454,0.99175571,602.74,602.06,3.2811928]
[1746630353655,0.99175571,602.73,602.06,3.2811928]
[1746630354054,0.99175571,602.72,602.06,3.2811928]
[1746630354356,0.99175571,602.71,602.06,3.2811928]
[1746630355152,0.99175571,602.7,602.06,3.2811928]
[1746630355652,0.99175571,602.69,602.06,3.2811928]
[1746630355956,0.99175571,602.68,602.06,3.2811928]
[1746630356556,0.99175571,602.67,602.06,3.2811928]
[1746630357056,0.99175571,602.67,602.06,2.1931928]
[1746630357256,0.99175571,602.66,602.06,2.1931928]
[1746630357758,0.99175571,602.65,602.06,2.1931928]
[1746630358561,0.99175571,602.64,602.06,2.1931928]
[1746630359161,0.99175571,602.63,602.06,2.1931928]
[1746630359357,0.99175571,602.62,602.06,2.1931928]
[1746630360257,0.99175571,602.61,602.06,2.1931928]
[1746630360760,0.99175571,602.6,602.06,2.1931928]
[1746630361062,0.99175571,602.59,602.06,2.1931928]
[1746630361662,0.99175571,602.58,602.06,2.1931928]
[1746630361961,0.99175571,602.57,602.06,2.1931928]
[1746630362458,0.99175571,602.56,602.06,2.1931928]
[1746630363164,0.99175571,602.55,602.06,2.1931928]
[1746630363363,0.99175571,602.54,602.06,2.1931928]
[1746630364160,0.99175571,602.53,602.06,2.1931928]
[1746630364857,0.99175571,602.52,602.06,2.1931928]
[1746630365259,0.99175571,602.51,602.06,2.1931928]
[1746630365763,0.99175571,602.5,602.06,2.1931928]
[1746630366166,0.99175571,602.49,602.06,2.1931928]
[1746630366662,0.99175571,602.48,602.06,2.1931928]
[1746630367062,0.99175571,602.47,602.06,2.1931928]
[1746630367363,0.99175571,602.46,602.06,2.1931928]
[1746630367963,0.99175571,602.45,602.06,2.1931928]
[1746630368365,0.99175571,602.44,602.06,2.1931928]
[1746630368761,0.99175571,602.43,602.06,2.1931928]
[1746630369263,0.99175571,602.42,602.06,2.1931928]
[1746630369564,0.33164745,603.05,602.06,2.1931928]
[1746630370158,0.99216111,603.04,602.06,2.1931928]
[1746630370359,0.99216111,603.03,602.06,2.1931928]
[1746630370762,0.99216111,603.02,602.06,2.1931928]
[1746630371261,0.99216111,603.01,602.06,2.1931928]
[1746630371765,0.99216111,603.0,602.06,2.1931928]
[1746630372366,0.99216111,602.99,602.06,2.1931928]
[1746630373067,0.99216111,602.98,602.06,2.1931928]
[1746630373267,0.99216111,602.97,602.06,2.1931928]
[1746630373666,0.99216111,602.96,602.06,2.1931928]
[1746630374467,0.99216111,602.95,602.06,2.1931928]
[1746630374966,0.99216111,602.94,602.06,2.1931928]
[1746630375366,0.99216111,602.93,602.06,2.1931928]
[1746630375667,0.99216111,602.92,602.06,2.1931928]
[1746630376166,0.99216111,602.91,602.06,2.1931928]
[1746630376669,0.99216111,602.9,602.06,2.1931928]
[1746630377270,0.99216111,602.89,602.06,2.1931928]
[1746630377869,0.99216111,602.88,602.06,2.1931928]
[1746630378369,0.99216111,602.87,602.06,2.1931928]
[1746630379169,0.99216111,602.86,602.06,2.1931928]
[1746630379570,0.99216111,602.85,602.06,2.1931928]
[1746630379867,0.99216111,602.84,602.06,2.1931928]
[1746630380670,0.97975494,602.83,602.06,2.1931928]
[1746630381073,0.33164745,603.05,602.06,2.1931928]
[1746630381875,0.33164745,603.05,602.06,1.861]
[1746630382672,0.30497094,603.04,602.06,1.861]
[1746630383975,0.28882305,603.03,602.06,1.861]
[1746630384171,0.28882305,603.03,602.06,2.918]
[1746630384470,0.30497094,603.02,602.06,2.918]
[1746630385475,0.33166945,603.01,602.06,2.918]
[1746630385976,0.30497094,603.0,602.06,2.918]
[1746630387278,0.33168045,602.99,602.06,2.918]
[1746630387778,0.30497094,602.98,602.06,2.918]
[1746630387978,0.33168045,602.99,602.06,2.918]
[1746630389283,0.3049755,602.98,602.06,2.918]
[1746630390080,0.28883024,602.97,602.06,2.918]
[1746630390575,0.30497616,602.96,602.06,2.918]
[1746630390779,0.63667312,602.96,602.06,2.918]
[1746630391182,0.33169696,602.96,602.06,2.918]
[1746630392582,0.99349134,602.95,602.06,2.918]
[1746630393083,0.99349134,602.94,602.06,2.918]
[1746630393479,0.99349134,602.93,602.06,2.918]
[1746630394083,0.99349134,602.92,602.06,2.918]
[1746630394478,0.99349134,602.91,602.06,2.918]
[1746630394985,0.99349134,602.9,602.06,2.918]
[1746630395385,0.99349134,602.89,602.06,2.918]
[1746630396084,0.99349134,602.88,602.06,2.918]
[1746630396585,0.99349134,602.87,602.06,2.918]
[1746630397085,0.99349134,602.86,602.06,2.918]
[1746630397285,0.99349134,602.85,602.06,2.918]
[1746630398085,0.99349134,602.84,602.06,2.918]
[1746630398887,0.99349134,602.83,602.06,2.918]
[1746630399392,0.99349134,602.82,602.06,2.918]
[1746630399993,0.99349134,602.81,602.06,2.918]
[1746630400388,0.99349134,602.8,602.06,2.918]
[1746630400892,0.99349134,602.79,602.06,2.918]
[1746630401494,0.99349134,602.78,602.06,2.918]
[1746630402092,0.99349134,602.77,602.06,2.918]
[1746630402494,0.99349134,602.76,602.06,2.918]
[1746630403093,0.99349134,602.75,602.06,2.918]
[1746630403490,0.99349134,602.74,602.06,2.918]
[1746630403889,0.99349134,602.73,602.06,2.918]
[1746630404797,0.99349134,602.72,602.06,2.918]
[1746630405194,0.99349134,602.71,602.06,2.918]
[1746630405598,0.99349134,602.7,602.06,2.918]
[1746630406398,0.99349134,602.69,602.06,2.918]
[1746630407303,0.99349134,602.68,602.06,2.918]
[1746630408200,0.99349134,602.67,602.06,2.918]
[1746630408802,0.99349134,602.66,602.06,2.918]
[1746630409200,0.99349134,602.65,602.06,2.918]
[1746630409501,0.99349134,602.64,602.06,2.918]
[1746630409901,0.99349134,602.63,602.06,2.918]
[1746630410299,0.99349134,602.62,602.06,2.918]
[1746630411002,0.99349134,602.61,602.06,2.918]
[1746630411303,0.99349134,602.6,602.06,2.918]
[1746630411599,0.99349134,602.6,602.06,1.848]
[1746630411804,0.99349134,602.59,602.06,1.848]
[1746630412201,0.99349134,602.58,602.06,1.057]
[1746630415216,0.99349134,602.54,602.06,1.057]
[1746630415415,0.99349134,602.53,602.06,1.057]
[1746630416116,0.99349134,602.52,602.06,1.057]
[1746630416309,0.99349134,602.51,602.06,1.057]
[1746630416615,0.99349134,602.5,602.06,1.057]
[1746630417218,0.99349134,602.49,602.06,1.057]
[1746630417413,0.99349134,602.48,602.06,1.057]
[1746630417610,0.99349134,602.47,602.06,1.057]
[1746630418013,0.99349134,602.46,602.06,1.057]
[1746630418518,0.99349134,602.45,602.06,1.057]
[1746630419120,0.99349134,602.44,602.06,1.057]
[1746630419518,0.99349134,602.43,602.06,1.057]
[1746630420018,0.99349134,602.42,602.06,1.057]
[1746630420622,0.99349134,602.41,602.06,1.057]
[1746630420822,0.99349134,602.4,602.03,1.058]
[1746630421220,0.99349134,602.39,602.03,1.058]
[1746630421421,0.99349134,602.38,602.03,1.058]
[1746630421721,0.99349134,602.37,602.03,1.058]
[1746630422121,0.99349134,602.36,602.03,1.058]
[1746630422315,0.99349134,602.35,602.03,1.058]
[1746630422722,0.99349134,602.34,602.03,1.058]
[1746630423121,0.99349134,602.33,602.03,1.058]
[1746630423523,0.99349134,602.32,602.03,1.058]
[1746630423918,0.28891776,602.88,602.03,1.058]
[1746630424622,0.98823401,602.87,602.03,1.058]
[1746630425218,0.98823401,602.86,602.03,1.058]
[1746630425618,0.98823401,602.85,602.03,1.058]
[1746630426422,0.98823401,602.84,602.03,1.058]
[1746630426618,0.98823401,602.83,602.03,1.058]
[1746630427118,0.98823401,602.82,602.03,1.058]
[1746630427524,0.98823401,602.81,602.03,1.058]
[1746630427925,0.98823401,602.8,602.03,1.058]
[1746630428323,0.98823401,602.79,602.03,1.058]
[1746630428527,0.98823401,602.78,602.03,1.058]
[1746630429228,0.98823401,602.77,602.03,1.058]
[1746630429623,0.98823401,602.76,602.03,1.058]
[1746630430028,0.98823401,602.75,602.03,1.058]
[1746630430628,0.98823401,602.74,602.03,1.058]
[1746630431129,0.98823401,602.73,602.03,1.058]
[1746630431531,0.98823401,602.72,602.03,1.058]
[1746630432027,0.98823401,602.71,602.03,1.058]
[1746630432632,0.98823401,602.7,602.03,1.058]
[1746630433228,0.98823401,602.69,602.03,1.058]
[1746630433526,0.98823401,602.68,602.03,1.058]
[1746630433832,0.98823401,602.67,602.03,1.058]
[1746630434232,0.98823401,602.66,602.03,1.058]
[1746630434632,0.98823401,602.65,602.03,1.058]
[1746630435132,0.98823401,602.64,602.03,1.058]
[1746630435731,0.98823401,602.63,602.03,1.058]
[1746630436427,0.98823401,602.62,602.03,1.058]
[1746630436833,0.98823401,602.61,602.03,1.058]
[1746630437229,0.98823401,602.6,602.03,1.058]
[1746630437833,0.98823401,602.59,602.03,1.058]
[1746630438234,0.28890217,602.88,602.03,1.058]
[1746630438835,0.33174647,602.87,602.03,1.058]
[1746630439534,0.9896513,602.86,602.03,1.058]
[1746630439733,0.33175748,602.85,602.03,1.058]
[1746630439928,0.63678791,602.85,602.03,2.072]
[1746630440130,0.9896513,602.84,602.03,2.072]
[1746630440432,1.29468173,602.84,602.03,2.072]
[1746630440631,0.30503043,602.83,602.03,2.072]
[1746630440829,1.29468173,602.83,602.03,2.072]
[1746630441134,0.30503043,602.82,602.03,2.072]
[1746630441835,0.30503043,602.84,602.03,2.072]
[1746630443137,0.99009841,602.83,602.03,2.072]
[1746630443537,0.30503043,602.82,602.03,2.072]
[1746630443837,0.99009841,602.81,602.03,2.072]
[1746630444038,0.30503043,602.82,602.03,2.072]
[1746630444236,0.30503043,602.84,602.03,2.072]
[1746630444433,0.63679341,602.84,602.03,2.072]
[1746630444838,0.30503043,602.83,602.03,2.072]
[1746630445337,0.99041312,602.82,602.03,2.072]
[1746630445637,0.99041312,602.82,602.03,2.885]
[1746630445839,0.99041312,602.81,602.03,2.885]
[1746630446038,0.30503043,602.8,602.03,2.885]
[1746630446337,0.99041312,602.79,602.03,2.885]
[1746630447237,0.99041312,602.78,602.03,2.885]
[1746630447539,0.99041312,602.77,602.03,2.885]
[1746630447841,0.33176298,602.84,602.03,2.885]
[1746630448137,0.3050072,602.83,602.03,2.885]
[1746630449240,0.33176298,602.84,602.03,2.885]
[1746630450742,0.30501187,602.83,602.03,2.885]
[1746630452141,0.33176298,602.84,602.03,2.885]
[1746630457245,0.28890577,602.83,602.03,2.885]
[1746630458647,0.33176298,602.84,602.03,2.885]
[1746630459149,0.28883383,602.83,602.03,2.885]
[1746630461449,0.98970096,602.82,602.03,2.885]
[1746630461749,1.62661968,602.81,602.03,2.885]
[1746630462142,1.29484019,602.8,602.03,2.885]
[1746630462346,0.30513923,602.79,602.03,2.885]
[1746630462545,0.98970096,602.78,602.03,2.885]
[1746630462748,0.33180151,602.77,602.03,2.885]
[1746630463050,0.98970096,602.76,602.03,2.885]
[1746630463353,0.33181252,602.75,602.03,2.885]
[1746630481170,0.98943181,602.74,602.03,2.885]
[1746630481572,0.98943181,602.73,602.03,2.885]
[1746630481969,0.98943181,602.72,602.03,2.885]
[1746630482372,0.33181252,602.75,602.03,2.885]
[1746630483471,0.9896195,602.74,602.03,2.885]
[1746630483772,0.9896195,602.73,602.03,2.885]
[1746630484468,0.9896195,602.72,602.03,2.885]
[1746630485070,0.9896195,602.71,602.03,2.885]
[1746630485570,0.9896195,602.7,602.03,2.885]
[1746630485966,0.9896195,602.69,602.03,2.885]
[1746630486370,0.9896195,602.68,602.03,2.885]
[1746630486770,0.9896195,602.67,602.03,2.885]
[1746630487370,0.9896195,602.66,602.03,2.885]
[1746630487965,0.9896195,602.65,602.03,2.885]
[1746630488569,0.9896195,602.64,602.03,2.885]
[1746630488967,0.9896195,602.63,602.03,2.885]
[1746630489371,0.9896195,602.62,602.03,2.885]
[1746630489866,0.9896195,602.61,602.03,2.885]
[1746630490371,0.9896195,602.6,602.03,2.885]
[1746630491570,0.9896195,602.59,602.03,2.885]
[1746630492174,0.9896195,602.58,602.03,2.885]
[1746630492573,0.9896195,602.57,602.03,2.885]
[1746630492874,0.9896195,602.57,602.03,1.827]
[1746630493075,0.9896195,602.56,602.03,1.827]
[1746630493375,0.9896195,602.56,600.82,1.05519809]
[1746630493577,0.9896195,602.55,600.84,0.33286731]
[1746630494076,0.9896195,602.54,600.84,0.33286731]
[1746630494569,0.9896195,602.53,600.84,0.33286731]
[1746630494977,0.9896195,602.53,600.85,1.19407136]
[1746630495178,0.9896195,602.53,600.87,0.33285069]
[1746630495477,0.9896195,602.52,600.87,0.33285069]
[1746630495977,0.9896195,602.51,600.87,0.33285069]
[1746630496178,0.9896195,602.5,600.88,1.466]
[1746630496379,0.9896195,602.5,600.9,0.33283408]
[1746630496580,0.9896195,602.49,600.9,0.33283408]
[1746630496979,0.9896195,602.48,600.9,0.33283408]
[1746630497883,0.9896195,602.47,600.9,0.33283408]
[1746630498083,0.9896195,602.47,600.91,1.05519809]
[1746630498284,0.9896195,602.46,600.91,1.05519809]
[1746630498583,0.9896195,602.46,600.93,0.33281746]
[1746630498783,0.9896195,602.45,600.93,0.33281746]
[1746630499185,0.9896195,602.44,600.93,0.33281746]
[1746630499583,0.9896195,602.43,600.93,0.33281746]
[1746630499985,0.9896195,602.42,600.93,0.33281746]
[1746630500185,0.9896195,602.42,600.95,1.05519809]
[1746630500485,0.9896195,602.41,600.97,0.33279531]
[1746630501084,0.9896195,602.4,600.97,0.33279531]
[1746630501687,0.9896195,602.39,600.97,0.33279531]
[1746630501985,0.9896195,602.38,600.97,0.33279531]
[1746630502381,0.9896195,602.37,600.97,0.33279531]
[1746630502583,0.9896195,602.37,600.99,1.05519809]
[1746630502787,0.9896195,602.37,601.01,0.33277316]
[1746630502988,0.9896195,602.36,601.01,0.33277316]
[1746630503486,0.9896195,602.35,601.01,0.33277316]
[1746630503987,0.9896195,602.34,601.01,0.33277316]
[1746630504287,0.33181252,602.75,601.01,0.33277316]
[1746630504588,0.33181252,602.75,601.09,1.05519809]
[1746630506187,0.33181252,602.75,601.14,1.05519809]
[1746630506885,0.3050635,602.74,601.14,1.05519809]
[1746630507284,0.3050635,602.74,601.16,0.33269013]
[1746630508790,0.33181252,602.75,601.16,0.33269013]
[1746630512196,0.98961212,602.74,601.16,0.33269013]
[1746630512388,0.33182353,602.73,601.16,0.33269013]
[1746630512590,1.32143565,602.73,601.16,0.33269013]
[1746630512790,0.98961212,602.72,601.16,0.33269013]
[1746630512992,1.32144666,602.71,601.16,1.05669013]
[1746630513197,0.33184005,602.7,601.16,1.05669013]
[1746630513394,0.98961212,602.69,601.16,1.05669013]
[1746630514094,0.98961212,602.68,601.16,1.05669013]
[1746630514595,0.98961212,602.67,601.16,1.05669013]
[1746630514797,0.98961212,602.66,601.16,1.05669013]
[1746630515497,0.98961212,602.65,601.16,1.05669013]
[1746630516093,0.98961212,602.64,601.16,1.05669013]
[1746630516494,0.98961212,602.63,601.16,1.05669013]
[1746630516999,0.28905095,602.67,601.16,1.05669013]
[1746630517202,0.33186207,602.66,601.16,1.05669013]
[1746630519702,0.33186207,602.66,601.16,1.86869013]
[1746630520201,0.98809007,602.65,601.16,1.86869013]
[1746630520502,0.98809007,602.64,601.16,1.86869013]
[1746630521399,0.98809007,602.63,601.16,1.86869013]
[1746630521699,0.33186207,602.66,601.16,1.86869013]
[1746630521700,0.98809007,602.62,601.16,1.86869013]
[1746630522404,0.98809007,602.61,601.16,1.86869013]
[1746630522603,0.33186207,602.66,601.16,1.86869013]
[1746630525700,0.98767713,602.65,601.16,1.86869013]
[1746630527209,0.98767713,602.64,601.16,1.86869013]
[1746630527401,0.33186207,602.66,601.16,1.86869013]
[1746630529510,0.98766401,602.65,601.16,1.86869013]
[1746630529907,0.98766401,602.64,601.16,1.86869013]
[1746630530410,0.33186207,602.66,601.16,1.86869013]
[1746630533411,0.98747039,602.65,601.16,1.86869013]
[1746630534014,0.98747039,602.64,601.16,1.86869013]
[1746630534612,0.98747039,602.63,601.16,1.86869013]
[1746630535313,0.98747039,602.62,601.16,1.86869013]
[1746630535713,0.98747039,602.61,601.16,1.86869013]
[1746630536114,0.98747039,602.6,601.16,1.86869013]
[1746630536807,0.98747039,602.59,601.16,1.86869013]
[1746630537009,0.98747039,602.58,601.16,1.86869013]
[1746630537415,0.98747039,602.57,601.16,1.86869013]
[1746630537615,0.98747039,602.56,601.16,1.86869013]
[1746630538108,0.98747039,602.55,601.16,1.86869013]
[1746630539010,0.98747039,602.54,601.16,1.86869013]
[1746630539414,0.98747039,602.53,601.16,1.86869013]
[1746630539816,0.98747039,602.52,601.16,1.86869013]
[1746630540317,0.98747039,602.51,601.16,2.90669013]
[1746630541116,0.98747039,602.5,601.16,2.90669013]
[1746630541511,0.98747039,602.49,601.16,2.90669013]
[1746630541915,0.98747039,602.48,601.16,2.90669013]
[1746630542317,0.98747039,602.47,601.16,2.90669013]
[1746630542716,0.98747039,602.46,601.16,2.90669013]
[1746630543118,0.98747039,602.45,601.16,2.90669013]
[1746630543626,0.98747039,602.44,601.16,2.90669013]
[1746630544018,0.98747039,602.43,601.16,2.90669013]
[1746630544325,0.98747039,602.42,601.16,2.90669013]
[1746630544726,0.33186207,602.66,601.16,2.90669013]
[1746630544925,0.98754703,602.41,601.16,2.90669013]
[1746630545124,0.33186207,602.66,601.16,2.90669013]
[1746630545125,0.98754703,602.65,601.16,2.90669013]
[1746630545626,0.98754703,602.64,601.16,2.90669013]
[1746630546020,0.98754703,602.63,601.16,2.90669013]
[1746630546926,0.98754703,602.62,601.16,2.90669013]
[1746630547525,0.98754703,602.61,601.16,2.90669013]
[1746630547824,0.98754703,602.6,601.16,2.90669013]
[1746630548225,0.98754703,602.59,601.16,2.90669013]
[1746630548821,0.98754703,602.58,601.16,2.90669013]
[1746630549127,0.98754703,602.58,601.16,3.59669013]
[1746630549324,0.98754703,602.57,601.16,3.59669013]
[1746630549628,0.98754703,602.56,601.16,3.59669013]
[1746630550127,0.98754703,602.55,601.16,3.59669013]
[1746630550726,0.98754703,602.54,601.16,3.59669013]
[1746630551028,0.98754703,602.53,601.16,3.59669013]
[1746630551424,0.98754703,602.52,601.16,3.59669013]
[1746630552330,0.98754703,602.51,601.16,3.59669013]
[1746630552930,0.98754703,602.5,601.16,3.59669013]
[1746630553131,0.98754703,602.49,601.16,3.59669013]
[1746630553634,0.98754703,602.48,601.16,3.59669013]
[1746630554227,0.98754703,602.47,601.16,3.59669013]
[1746630555032,0.98754703,602.46,601.16,3.59669013]
[1746630555232,0.98754703,602.45,601.16,3.59669013]
[1746630556025,0.98754703,602.44,601.16,3.59669013]
[1746630556634,0.98754703,602.43,601.16,3.59669013]
[1746630557229,0.98754703,602.42,601.16,3.59669013]
[1746630558133,0.98754703,602.41,601.16,3.59669013]
[1746630558528,0.98754703,602.4,601.16,3.59669013]
[1746630558728,0.98754703,602.39,601.16,3.59669013]
[1746630559134,0.98754703,602.38,601.16,3.59669013]
[1746630559329,0.98754703,602.37,601.16,3.59669013]
[1746630559835,0.98754703,602.36,601.16,3.59669013]
[1746630560735,0.98754703,602.35,601.16,3.59669013]
[1746630561232,0.98754703,602.34,601.16,3.59669013]
[1746630561438,0.98754703,602.33,601.16,3.59669013]
[1746630562237,0.98754703,602.32,601.16,3.59669013]
[1746630562935,0.98754703,602.31,601.16,3.59669013]
[1746630563338,0.98754703,602.3,601.16,3.59669013]
[1746630563637,0.98754703,602.29,601.16,3.59669013]
[1746630564236,0.98754703,602.28,601.16,3.59669013]
[1746630564636,0.98754703,602.27,601.16,3.59669013]
[1746630565436,0.98754703,602.26,601.16,3.59669013]
[1746630566340,0.98754703,602.25,601.16,3.59669013]
[1746630566743,0.98754703,602.24,601.16,3.59669013]
[1746630567443,0.98754703,602.23,601.16,3.59669013]
[1746630567941,0.98754703,602.22,601.16,3.59669013]
[1746630568442,0.98754703,602.21,601.16,3.59669013]
[1746630569142,0.98754703,602.2,601.16,3.59669013]
[1746630569943,0.33186207,602.66,601.16,3.59669013]
[1746630569944,0.98754703,602.19,601.16,3.59669013]
[1746630570644,0.98754703,602.18,601.16,3.59669013]
[1746630571147,0.98754703,602.17,601.16,3.59669013]
[1746630571744,0.98754703,602.16,601.16,3.59669013]
[1746630572139,0.98754703,602.15,601.16,3.59669013]
[1746630572342,0.98754703,602.14,601.16,3.59669013]
[1746630572539,0.98754703,602.13,601.16,3.59669013]
[1746630572845,0.33186207,602.66,601.16,3.59669013]
[1746630573847,0.98882024,602.65,601.16,3.59669013]
[1746630574247,0.98882024,602.64,601.16,3.59669013]
[1746630574742,0.98882024,602.63,601.16,3.59669013]
[1746630575547,0.98882024,602.62,601.16,3.59669013]
[1746630576047,0.98882024,602.61,601.16,3.59669013]
[1746630576347,0.98882024,602.6,601.16,3.59669013]
[1746630576543,0.98882024,602.59,601.16,3.59669013]
[1746630576744,0.98882024,602.58,601.16,3.59669013]
[1746630577549,0.98882024,602.57,601.16,3.59669013]
[1746630577842,0.98882024,602.56,601.16,3.59669013]
[1746630578248,0.98882024,602.55,601.16,3.59669013]
[1746630578849,0.98882024,602.54,601.16,3.59669013]
[1746630579246,0.98882024,602.53,601.16,3.59669013]
[1746630579750,0.98882024,602.52,601.16,3.59669013]
[1746630580249,0.98882024,602.51,601.16,3.59669013]
[1746630580648,0.98882024,602.5,601.16,3.59669013]
[1746630580948,0.98882024,602.49,601.16,3.59669013]
[1746630581448,0.98882024,602.48,601.16,3.59669013]
[1746630581748,0.98882024,602.47,601.16,3.59669013]
[1746630581944,0.98882024,602.46,601.16,3.59669013]
[1746630582448,0.98882024,602.45,601.16,3.59669013]
[1746630582950,0.98882024,602.44,601.16,3.59669013]
[1746630583447,0.98882024,602.43,601.16,3.59669013]
[1746630583750,0.98882024,602.42,601.16,3.59669013]
[1746630584452,0.98882024,602.41,601.16,3.59669013]
[1746630584753,0.98882024,602.4,601.16,3.59669013]
[1746630585349,0.98882024,602.39,601.16,3.59669013]
[1746630585950,0.98882024,602.38,601.16,3.59669013]
[1746630586750,0.98882024,602.37,601.16,3.59669013]
[1746630587151,0.98882024,602.36,601.16,3.59669013]
[1746630587845,0.98882024,602.35,601.16,3.59669013]
[1746630588450,0.98882024,602.34,601.16,3.59669013]
[1746630588750,0.98882024,602.33,601.16,3.59669013]
[1746630589152,0.98882024,602.32,601.16,3.59669013]
[1746630589551,0.98882024,602.31,601.16,3.59669013]
[1746630589948,0.98882024,602.3,601.16,3.59669013]
[1746630590347,0.98882024,602.29,601.16,3.59669013]
[1746630590947,0.98882024,602.28,601.16,3.59669013]
[1746630591548,0.98882024,602.27,601.16,3.59669013]
[1746630591747,0.98882024,602.26,601.16,3.59669013]
[1746630592450,0.98882024,602.25,601.16,3.59669013]
[1746630592753,0.98882024,602.24,601.16,3.59669013]
[1746630593146,0.98882024,602.23,601.16,3.59669013]
[1746630593547,0.98882024,602.22,601.16,3.59669013]
[1746630594252,0.98882024,602.21,601.16,3.59669013]
[1746630594653,0.98882024,602.2,601.16,3.59669013]
[1746630595154,0.98882024,602.19,601.16,3.59669013]
[1746630595853,0.98882024,602.18,601.16,3.59669013]
[1746630596053,0.98882024,602.17,601.16,3.59669013]
[1746630596949,0.98882024,602.16,601.16,3.59669013]
[1746630597352,0.98882024,602.15,601.16,3.59669013]
[1746630597753,0.98882024,602.14,601.16,3.59669013]
[1746630598457,0.98882024,602.13,601.16,3.59669013]
[1746630598953,0.98882024,602.12,601.16,3.59669013]
[1746630599354,0.98882024,602.11,601.16,3.59669013]
[1746630599654,0.33186207,602.66,601.16,3.59669013]
[1746630599955,0.99030321,602.65,601.16,3.59669013]
[1746630600659,0.99030321,602.64,601.16,3.59669013]
[1746630601059,0.99030321,602.63,601.16,3.59669013]
[1746630601660,0.99030321,602.62,601.16,3.59669013]
[1746630602157,0.99030321,602.61,601.16,3.59669013]
[1746630603259,0.99030321,602.6,601.16,3.59669013]
[1746630603764,0.99030321,602.59,601.16,3.59669013]
[1746630604365,0.99030321,602.58,601.16,3.59669013]
[1746630604665,1.32221485,602.57,601.16,3.59669013]
[1746630604866,0.33191715,602.56,601.16,3.59669013]
[1746630605265,0.99030321,602.55,601.16,3.59669013]
[1746630605862,0.99030321,602.54,601.16,3.59669013]
[1746630606366,0.99030321,602.53,601.16,3.59669013]
[1746630606766,0.99030321,602.52,601.16,3.59669013]
[1746630607066,0.33191715,602.56,601.16,3.59669013]
[1746630607067,0.99030321,602.51,601.16,3.59669013]
[1746630607570,0.99030321,602.5,601.16,3.59669013]
[1746630608166,0.99030321,602.49,601.16,3.59669013]
[1746630608568,0.99030321,602.48,601.16,3.59669013]
[1746630608968,0.99030321,602.47,601.16,3.59669013]
[1746630609368,0.99030321,602.46,601.16,3.59669013]
[1746630610372,0.99030321,602.45,601.16,3.59669013]
[1746630610576,0.99030321,602.44,601.16,3.59669013]
[1746630610875,0.99030321,602.43,601.16,3.59669013]
[1746630611175,0.99030321,602.42,601.16,3.59669013]
[1746630611675,0.99030321,602.41,601.16,3.59669013]
[1746630611976,0.99030321,602.4,601.16,3.59669013]
[1746630612775,0.99030321,602.39,601.16,3.59669013]
[1746630612972,0.99030321,602.38,601.16,3.59669013]
[1746630613179,0.99030321,602.37,601.16,3.59669013]
[1746630613472,0.99030321,602.36,601.16,3.59669013]
[1746630614077,0.99030321,602.35,601.16,3.59669013]
[1746630614572,0.99030321,602.34,601.16,3.59669013]
[1746630614776,0.99030321,602.33,601.16,3.59669013]
[1746630615276,0.99030321,602.32,601.16,3.59669013]
[1746630615778,0.99030321,602.31,601.16,3.59669013]
[1746630616073,0.99030321,602.3,601.16,3.59669013]
[1746630616677,0.99030321,602.29,601.16,3.59669013]
[1746630616878,0.99030321,602.28,601.16,3.59669013]
[1746630617673,0.99030321,602.27,601.16,3.59669013]
[1746630618179,0.99030321,602.26,601.16,3.59669013]
[1746630618375,0.99030321,602.25,601.16,3.59669013]
[1746630618678,0.99030321,602.24,601.16,3.59669013]
[1746630619278,0.99030321,602.23,601.16,3.59669013]
[1746630619778,0.99030321,602.22,601.16,3.59669013]
[1746630620279,0.99030321,602.21,601.16,3.59669013]
[1746630620978,0.98863498,602.2,601.16,3.59669013]
[1746630621680,0.98863498,602.19,601.16,3.59669013]
[1746630621881,0.33191715,602.56,601.16,3.59669013]
[1746630622280,0.98910879,602.55,601.16,3.59669013]
[1746630622978,0.98910879,602.54,601.16,3.59669013]
[1746630623281,0.98910879,602.53,601.16,3.59669013]
[1746630623983,0.98910879,602.52,601.16,3.59669013]
[1746630624580,0.98910879,602.51,601.16,3.59669013]
[1746630625182,0.98910879,602.5,601.16,3.59669013]
[1746630625776,0.98910879,602.49,601.16,3.59669013]
[1746630626182,0.98910879,602.48,601.16,3.59669013]
[1746630626779,0.98910879,602.47,601.16,3.59669013]
[1746630627177,0.98910879,602.46,601.16,3.59669013]
[1746630627985,0.28900894,602.93,601.16,3.59669013]